[Event "Marshall CC Premier 01-2025"]
[Site "New York"]
[Date "2025.01.04"]
[Round "2.6"]
[White "Stern, Kevin B"]
[Black "Hebbar, Eshaan"]
[Result "1/2-1/2"]
[ECO "A26"]
[WhiteElo "1925"]
[BlackElo "2144"]
[Annotator "TA"]
[PlyCount "126"]
[EventDate "2025.01.03"]
[EventType "swiss"]
[EventCountry "USA"]
[SourceTitle "playchess.com"]
[Source "ChessBase"]
[SourceQuality "1"]
[TimeControl "5400+30"]

{[%evp 28,126,54,40,44,36,36,0,20,0,0,-5,59,31,57,0,0,0,46,5,68,0,212,4,4,0,0,18,497,313,268,-10,82,97,297,29,59,45,70,0,81,0,0,-44,0,-52,-45,-40,-66,-70,-58,-46,0,-43,0,-40,-56,-49,-33,-103,-17,-83,-23,-20,-31,-70,-1,-8,-12,-175,-21,-21,-10,-22,-10,-172,-18,-71,-71,-76,0,0,0,0,0,0,0,0,0,0,0,0,0,0,0,0,0,0,0,0,0]} 1. c4 {[%emt 0:00:04]} Nf6 {[%emt 0:00:06]} 2. Nc3 {[%emt 0:00:06]} g6 {[%emt 0:00:07]} 3. g3 {[%emt 0:00:10]} Bg7 {[%emt 0:00:06]} 4. Bg2 {[%emt 0:00:02]} O-O {[%emt 0:00:09]} 5. Nf3 {[%emt 0:00:06]} d6 {[%emt 0:00:08]} 6. O-O {[%emt 0:00:05]} e5 {[%emt 0:03:44]} 7. d3 {[%emt 0:00:07]} Nc6 {[%emt 0:01:32]} 8. Rb1 {[%emt 0:00:29]} Ne7 {[%emt 0:06:59]} 9. b4 {[%emt 0:03:58]} Ne8 {[%emt 0:00:27]} 10. Qb3 {[%emt 0:04:40]} h6 {[%emt 0:03:20]} 11. b5 {[%emt 0:08:10]} Be6 {[%emt 0:19:23]} 12. Nd2 {[%emt 0:02:09]} Qc8 {[%emt 0:00:22]} 13. a4 {[%emt 0:05:43]} Rb8 {[%emt 0:06:14]} 14. Ba3 {[%emt 0:03:13]} b6 {[%emt 0:54:53]} 15. Rfc1 {[%emt 0:08:04]} f5 {[%emt 0:00:00]} 16. Nd5 {[%emt 0:07:15]} Qd7 {[%emt 0:00:00]} 17. a5 {[%emt 0:07:51]} g5 {[%emt 0:00:00]} 18. axb6 {[%emt 0:03:08]} axb6 {[%emt 0:00:00]} 19. Bb2 {[%emt 0:01:41]} h5 {[%emt 0:00:00]} (19... f4 $11) 20. Ra1 {[%emt 0:05:13]} g4 {[%emt 0:00:00]} 21. e3 {[%emt 0:04:53]} (21. Nb4 $14) 21... Bxd5 $11 {[%emt 0:00:00]} 22. cxd5 {[%emt 0:01:07]} Ng6 {[%emt 0:00:00]} (22... h4 $11 {might be stronger.}) 23. Ra7 {[%emt 0:05:00]} Qf7 {[%emt 0:00:00]} (23... h4 $11) 24. Ba3 {[%emt 0:03:57]} (24. h4 Rd8 $16) (24. Nc4 $14 Qf6 25. h4) 24... Bh6 $2 {[%emt 0:00:00]} (24... Rd8 $1 $11) 25. Rc6 $2 {[%emt 0:09:23]} (25. Rcxc7 $1 $18 Nxc7 26. Bxd6) 25... f4 {[%emt 0:00:00]} (25... Rd8 $5) 26. exf4 {[%emt 0:00:30]} exf4 {[%emt 0:00:00]} 27. Ne4 {[%emt 0:00:29]} f3 $2 {[%emt 0:00:00][%mdl 8192]} (27... fxg3 $1 $11 {and Black stays safe.} 28. hxg3 Rd8) 28. Bf1 {[%emt 0:02:05]} Ne7 {[%emt 0:00:00]} 29. Rc3 $2 {[%emt 0:08:24]} ({White must play} 29. Rcxc7 $1 $18 Nxc7 30. Rxc7 Qxd5 31. Qc2) 29... Bg7 {[%emt 0:00:00]} (29... Qxd5 $11 30. Rc4 Rd8) 30. d4 $1 $16 {[%emt 0:01:15]} Bxd4 $2 {[%emt 0:00:00]} (30... Nxd5 $2 31. Bc4 Qf5 32. Bxd5+ $18) (30... Kh8 $16) 31. Rd3 $2 {[%emt 0:00:15]} (31. Rcxc7 $1 $18 Nxc7 32. Rxc7) 31... Qg7 {[%emt 0:00:00]} (31... Qxd5 $2 32. Qxd5+ Nxd5 33. Rxd4 $18) 32. Qc4 {[%emt 0:01:08]} Be5 {[%emt 0:00:00]} 33. Rd1 {[%emt 0:01:11]} ({White should play} 33. Bc1 $1 $14) 33... Nf5 {[%emt 0:00:00]} (33... h4 $11) 34. Bd3 {[%emt 0:01:08]} (34. Bc1 $1 $16) 34... h4 $11 {[%emt 0:00:14]} 35. Qc1 {[%emt 0:01:51]} hxg3 {[%emt 0:00:40]} 36. hxg3 {[%emt 0:00:21]} (36. Nxg3 $11 Nxg3 37. hxg3) 36... Nd4 $15 {[%emt 0:01:53]} 37. Qg5 $1 {[%emt 0:01:05]} Rf5 {[%emt 0:02:13]} 38. Qxg7+ $1 {[%emt 0:00:23]} Bxg7 {[%emt 0:00:01]} 39. Nc3 {[%emt 0:02:13]} Re5 {[%emt 0:00:57]} (39... Rh5 $1 $15) 40. Bb2 {[%emt 0:00:48]} Re7 {[%emt 0:00:12]} 41. Kf1 {[%emt 0:00:20]} Nb3 {[%emt 0:01:36]} 42. Bf5 {[%emt 0:00:31]} Nf6 {[%emt 0:04:30]} 43. Be6+ {[%emt 0:00:03]} (43. Ra3 $15 Nc5 44. Nb1) 43... Kf8 {[%emt 0:00:05]} (43... Kh7 $17 44. Nb1 Kg6) 44. Ba3 {[%emt 0:00:32]} (44. Ra4 $11 {keeps the balance.}) 44... Nc5 {[%emt 0:00:28]} (44... Rbe8 $1 $17 {[%cal Of6d5]} 45. Bc1 Nxc1 46. Rxc1 Bh6) 45. Bxc5 $11 {[%emt 0:00:39]} bxc5 {[%emt 0:00:06]} 46. Rb1 {[%emt 0:00:24] [#]} Nxd5 {[%emt 0:01:08]} ({Black should try} 46... Ne8 $1 $15 47. Ra3 (47. Nd1 c6) 47... Bxc3 48. Rxc3 Nf6) 47. Nxd5 $11 {[%emt 0:00:20]} Rxe6 {[%emt 0:00:05]} 48. Nxc7 $2 {[%emt 0:00:23] [#]} (48. Rxc7 $11 Bd4 49. b6) 48... Re2 $2 {[%emt 0:01:06]} (48... Re7 $1 $19 49. b6 Kf7) 49. Re1 $11 {[%emt 0:00:55]} Rxe1+ {[%emt 0:00:31]} 50. Kxe1 {[%emt 0:00:01]} Bc3+ {[%emt 0:00:09]} 51. Kf1 $2 {[%emt 0:00:47]} (51. Kd1 $11) 51... Bd4 $2 {[%emt 0:00:29]} (51... Be5 $19 52. Ke1 d5 53. Nxd5 Rxb5) 52. Ra8 {[%emt 0:01:16]} (52. Ne6+ $11 Kg8 53. Nxd4 cxd4 54. Ra4) 52... Rxa8 $17 {[%emt 0:00:06]} 53. Nxa8 {[%emt 0:00:02] [#]} c4 {[%emt 0:00:14]} (53... Ke7 $1 $17 {and ...c4 would now be decisive} 54. b6 Be5) 54. b6 $11 {[%emt 0:00:04]} c3 {[%emt 0:02:37]} (54... Ke7 $5 55. b7 $8 Ba7 $16) 55. b7 {[%emt 0:00:48]} Ba7 {[%emt 0:00:12]} 56. Ke1 $1 {[%emt 0:00:01]} Bb8 {[%emt 0:00:23]} 57. Kd1 {[%emt 0:00:24]} Ke7 {[%emt 0:00:51]} 58. Nb6 $1 {[%emt 0:02:20]} Ke6 {[%emt 0:00:37]} 59. Kc2 {[%emt 0:00:00]} d5 {[%emt 0:00:19]} 60. Kxc3 {[%emt 0:00:00]} Kd6 {[%emt 0:00:15]} 61. Nc8+ {[%emt 0:00:00]} (61. Kd4 $5 Ba7 $8 62. Kd3 $11) 61... Kc6 {[%emt 0:00:31]} 62. Ne7+ {[%emt 0:00:00]} Kxb7 {[%emt 0:00:11]} 63. Nxd5 {[%emt 0:00:00]} Ba7 {[%emt 0:00:06]} 1/2-1/2

[Event "Marshall CC Premier 01-2025"]
[Site "New York"]
[Date "2025.01.04"]
[Round "2.7"]
[White "Hoffman, Luc"]
[Black "Aravindakshan, Sahana"]
[Result "1-0"]
[ECO "B40"]
[WhiteElo "2131"]
[BlackElo "1993"]
[Annotator "TA"]
[PlyCount "55"]
[EventDate "2025.01.03"]
[EventType "swiss"]
[EventCountry "USA"]
[SourceTitle "playchess.com"]
[Source "ChessBase"]
[SourceQuality "1"]
[TimeControl "5400+30"]

{[%evp 9,55,0,8,7,3,-3,5,2,14,18,31,16,43,16,25,16,18,26,27,28,40,0,207,197,323,349,356,350,306,290,587,577,892,875,29988,565,727,366,384,387,431,435,1138,401,980,972,29997,29998]} 1. e4 {[%emt 0:00:46]} c5 {[%emt 0:00:03]} 2. Nf3 {[%emt 0:00:24]} e6 {[%emt 0:00:12]} 3. b3 {[%emt 0:01:41]} a6 {[%emt 0:00:11]} 4. Bb2 {[%emt 0:00:26]} Nc6 {[%emt 0:00:18]} 5. c4 {[%emt 0:01:29]} Qc7 {[%emt 0:00:55]} 6. g3 {[%emt 0:06:07]} Nf6 {[%emt 0:02:34]} 7. Qe2 {[%emt 0:00:44]} b5 {[%emt 0:05:17]} 8. Na3 {[%emt 0:06:29]} b4 {[%emt 0:13:44]} 9. Nc2 {[%emt 0:00:16]} Bb7 {[%emt 0:10:31][%cal Of6e4]} 10. Bg2 {[%emt 0:00:36]} Be7 {[%emt 0:04:02]} 11. d4 {[%emt 0:05:22]} cxd4 {[%emt 0:03:40]} 12. Ncxd4 {[%emt 0:02:28]} O-O {[%emt 0:09:22]} 13. O-O {[%emt 0:00:37]} Nxd4 {[%emt 0:05:59]} 14. Nxd4 {[%emt 0:00:20]} Bc5 {[%emt 0:07:49]} 15. Rfd1 {[%emt 0:03:27]} d5 $2 {[%emt 0:07:10]} (15... e5 $11 {and Black is okay.} 16. Nf5 Rad8) 16. cxd5 $18 {[%emt 0:05:20]} exd5 {[%emt 0:00:51]} (16... Qb6 17. d6 h6) 17. Nf5 {[%emt 0:01:38]} Qb6 {[%emt 0:07:02]} 18. Rac1 {[%emt 0:02:25][%cal Oc1c5]} (18. exd5 Rfe8 19. Qd2 Ne4 20. Bxe4 Rxe4 $18) 18... Rac8 {[%emt 0:02:50][%cal Rd5e4]} 19. Qd2 {[%emt 0:21:08][%cal Oc1c5]} Nxe4 $2 {[%emt 0:03:28]} (19... dxe4 {was necessary.} 20. Qg5 Ne8 (20... Bxf2+ $2 21. Kf1 $18) 21. Bxg7 (21. Nxg7 $2 f6 $19) 21... Qg6) 20. Bxe4 {[%emt 0:00:34][%cal Oc1c5]} dxe4 {[%emt 0:00:10] [#]} 21. Rxc5 $1 {[%emt 0:04:16][%cal Od2g5][%mdl 512]} Rcd8 {[%emt 0:12:30]} (21... h6 22. Qd4) 22. Bd4 {[%emt 0:03:54]} (22. Qg5 $142 Rxd1+ 23. Kg2 Qg6 24. Ne7+ (24. Nxg7 $2 {too greedy.} e3+ 25. f3 e2 $19) 24... Kh8 25. Nxg6+ fxg6 26. Qe7 (26. Qe3 Rd3 $18) 26... Rg8 27. Rc7 (27. Qxb7 Rdd8 $18)) 22... e3 {[%emt 0:01:06]} 23. Nxe3 {[%emt 0:01:27] Rg5 is the strong threat.} (23. Bxe3 Rxd2 24. Rxd2 Qe6 $17) 23... Qe6 {[%emt 0:01:05]} 24. Qc2 {[%emt 0:11:44]} (24. Qxb4 Qe4 25. f3 Qxf3 $15) 24... Rc8 {[%emt 0:01:03]} 25. Qf5 {[%emt 0:00:55]} Qd6 {[%emt 0:00:30]} (25... Rcd8 $142 26. Qxe6 fxe6) 26. Qe5 {[%emt 0:02:22]} (26. Qg4 $142 {[%csl Gd4][%cal Rg4g7]} Qg6 27. Rg5) 26... Qg6 {[%emt 0:00:36]} (26... Qxe5 $142 27. Rxe5 Rfd8) 27. Nf5 {[%emt 0:00:51] Threatening mate with Ne7+.} Rxc5 {[%emt 0:00:16]} 28. Ne7+ {[%emt 0:00:12]} 1-0

[Event "Marshall CC Premier 01-2025"]
[Site "New York"]
[Date "2025.01.04"]
[Round "2.8"]
[White "Schaefer, Sasha Milo"]
[Black "Chin, Spencer"]
[Result "1-0"]
[ECO "B22"]
[WhiteElo "1976"]
[BlackElo "2104"]
[Annotator "TA"]
[PlyCount "119"]
[EventDate "2025.01.03"]
[EventType "swiss"]
[EventCountry "USA"]
[SourceTitle "playchess.com"]
[Source "ChessBase"]
[SourceQuality "1"]
[TimeControl "5400+30"]

{[%evp 10,119,0,0,7,8,22,11,46,16,61,26,52,20,21,0,47,28,56,68,108,97,92,48,184,116,120,117,115,112,98,86,110,66,73,62,99,132,108,42,87,65,52,57,131,91,95,91,91,100,92,79,83,51,90,86,88,57,59,58,56,50,45,48,52,52,45,50,91,42,100,96,98,97,104,98,393,377,455,441,437,402,437,461,460,454,488,480,457,462,488,488,488,488,481,475,467,456,439,387,585,602,800,759,1329,1235,1221,1150,29971,29973,9907,10780]} 1. e4 {[%emt 0:00:01]} c5 {[%emt 0:00:11]} 2. Nf3 {[%emt 0:00:03]} e6 {[%emt 0:00:51]} 3. c3 {[%emt 0:00:03]} Nf6 {[%emt 0:00:57]} 4. e5 {[%emt 0:00:03]} Nd5 {[%emt 0:00:05]} 5. g3 {[%emt 0:00:07]} Nc6 {[%emt 0:00:44]} 6. Bg2 {[%emt 0:00:21]} Be7 {[%emt 0:00:17]} 7. O-O {[%emt 0:00:38]} O-O {[%emt 0:01:13]} 8. Re1 {[%emt 0:03:52]} b6 {[%emt 0:02:02]} 9. d4 {[%emt 0:07:08]} cxd4 {[%emt 0:05:06]} 10. Nxd4 {[%emt 0:00:35]} Bb7 {[%emt 0:00:49]} 11. Bxd5 {[%emt 0:10:30]} exd5 {[%emt 0:00:11]} 12. Nf5 {[%emt 0:00:19][%cal Ob1a3]} g6 {[%emt 0:08:47]} (12... d6 $1 $11 13. exd6 (13. Qxd5 dxe5 14. Qf3 g6 $11) 13... Bf6 (13... Bxd6 14. Qg4 $14)) 13. Nh6+ $1 $14 {[%emt 0:06:49]} Kg7 {[%emt 0:01:47]} 14. Ng4 {[%emt 0:03:30]} (14. Qxd5 Bg5 15. Ng4 Bxc1 16. Rxc1 Qg5 $11) 14... Kg8 {[%emt 0:03:23]} 15. Bh6 $1 {[%emt 0:13:18][%cal Ob1a3]} (15. Qxd5 h5 16. Nf6+ Bxf6 17. exf6 d6 $16) 15... Re8 {[%emt 0:00:33]} 16. Qxd5 {[%emt 0:00:59]} (16. b4 {simplifies} d6 17. exd6 Qxd6 18. b5) 16... Qc7 {[%emt 0:07:11]} (16... Qc8 $14) 17. Nd2 {[%emt 0:03:38]} ({White should try} 17. Qc4 $1 $18) 17... Nb4 $16 {[%emt 0:06:25]} 18. Qb3 $1 {[%emt 0:04:54] White is much more active.} (18. cxb4 $2 Bxd5 19. Ne4 Bxe4 (19... Bxb4 20. Nef6+ Kh8 21. Nxd5 $17) 20. Rxe4 Qc2 $19) 18... Nd3 {[%emt 0:03:24]} 19. Re3 {[%emt 0:02:50]} Nc5 {[%emt 0:04:06]} 20. Qc4 {[%emt 0:01:48]} Qc6 {[%emt 0:04:04]} 21. Rf3 {[%emt 0:03:09]} Qe6 {[%emt 0:02:26] [#]} 22. Rf6 $1 {[%emt 0:04:11] Some like it hot} Bxf6 {[%emt 0:08:05]} (22... Qd5 23. Qxd5) 23. Nxf6+ {[%emt 0:00:15]} Kh8 {[%emt 0:00:31][%cal Oe6h3] [#] ...Qh3! would now be deadly.} 24. Nxe8 {[%emt 0:02:32]} (24. Qh4 $1 $16 Qc6 (24... Qxe5 $2 25. Bf4 $18) 25. f3 Rxe5 26. Bf4) 24... Rxe8 {[%emt 0:05:08]} 25. Qxe6 {[%emt 0:06:41]} (25. Be3 {seems wilder.} Bd5 26. Qd4 Kg8 27. b4) 25... Rxe6 {[%emt 0:00:53]} 26. f4 {[%emt 0:02:11]} f5 {[%emt 0:11:53]} (26... Nd3 $14) 27. Nc4 {[%emt 0:02:52]} Ne4 {[%emt 0:00:31]} 28. Rd1 {[%emt 0:00:17]} Bc6 {[%emt 0:00:56]} 29. Ne3 {[%emt 0:04:34]} Kg8 {[%emt 0:03:00]} 30. Rd4 {[%emt 0:03:14]} Kf7 {[%emt 0:03:35]} 31. g4 {[%emt 0:01:43]} fxg4 {[%emt 0:01:35]} 32. Nxg4 {[%emt 0:00:15]} Ke8 {[%emt 0:02:58]} 33. h4 {[%emt 0:03:46]} Ng3 {[%emt 0:02:14]} 34. Kf2 {[%emt 0:01:33] Prevents Ne2.} Nf5 {[%emt 0:00:57][%csl LRd4,LRh4]} 35. Rd2 {[%emt 0:01:29]} d6 {[%emt 0:06:23]} 36. Bg5 {[%emt 0:02:08]} h5 {[%emt 0:02:38]} 37. Nf6+ {[%emt 0:00:40]} Kf7 {[%emt 0:00:15]} 38. Re2 {[%emt 0:00:57]} a5 {[%emt 0:02:18]} 39. b3 {[%emt 0:01:40]} (39. c4 $16) 39... a4 {[%emt 0:01:00] [#]} (39... b5 $14) 40. bxa4 $1 {[%emt 0:01:18]} Bxa4 {[%emt 0:00:15]} 41. Nd5 {[%emt 0:01:34]} dxe5 {[%emt 0:00:13]} 42. fxe5 {[%emt 0:00:31]} ({Don't play} 42. Rxe5 Rd6 $14) 42... Bc6 $2 {[%emt 0:01:06][%mdl 8192]} (42... Bd7 $16) 43. Nc7 $18 {[%emt 0:00:32]} (43. Nxb6 Bb5 44. c4 Ba6 $11) 43... b5 {[%emt 0:00:25]} 44. Nxe6 {[%emt 0:00:23]} Kxe6 {[%emt 0:00:04][%mdl 4096] Endgame KRB-KBN} 45. Bf6 {[%emt 0:00:27]} Bd5 {[%emt 0:00:29]} 46. Rb2 {[%emt 0:00:41]} Bc6 {[%emt 0:00:41]} 47. Rb3 {[%emt 0:00:51]} Kd7 {[%emt 0:00:45]} 48. Ra3 {[%emt 0:00:22]} Bd5 {[%emt 0:00:25]} 49. Ra6 {[%emt 0:00:32]} Bc4 {[%emt 0:00:23]} 50. a3 {[%emt 0:01:07]} Bd5 {[%emt 0:00:26]} 51. a4 {[%emt 0:00:52]} bxa4 {[%emt 0:00:36]} 52. Rxa4 {[%emt 0:00:07]} Kc6 {[%emt 0:00:41]} 53. Ra7 {[%emt 0:00:58]} Kb5 {[%emt 0:00:09]} 54. Bg5 {[%emt 0:00:43]} Kc6 {[%emt 0:00:53]} (54... Kb6 $142) 55. Ra6+ {[%emt 0:00:17]} Kd7 {[%emt 0:00:13]} 56. Rxg6 {[%emt 0:00:18]} Be6 {[%emt 0:00:10]} 57. Rf6 {[%emt 0:00:21]} Ng7 {[%emt 0:00:35]} 58. Rh6 {[%emt 0:00:32] Hoping for Rh7.} Ke8 {[%emt 0:00:27]} 59. Bf6 {[%emt 0:00:46]} Nf5 {[%emt 0:00:11]} 60. Rxh5 {[%emt 0:00:12]} 1-0

[Event "Marshall CC Premier 01-2025"]
[Site "New York"]
[Date "2025.01.04"]
[Round "2.9"]
[White "Fleischman, Eric"]
[Black "Belenky, Nicholas"]
[Result "0-1"]
[ECO "D01"]
[WhiteElo "2013"]
[BlackElo "1977"]
[Annotator "RC"]
[PlyCount "58"]
[EventDate "2025.01.03"]
[EventType "swiss"]
[EventCountry "USA"]
[SourceTitle "playchess.com"]
[Source "ChessBase"]
[SourceQuality "1"]
[TimeControl "5400+30"]

1. d4 {[%emt 0:00:30]} d5 {[%emt 0:02:33]} 2. Nc3 {[%emt 0:00:00]} Nf6 {[%emt 0:00:22]} 3. Bg5 {[%emt 0:00:00]} h6 {[%emt 0:01:01]} 4. Bxf6 {[%emt 0:00:00]} exf6 {[%emt 0:00:04]} 5. e3 {[%emt 0:00:02]} c6 {[%emt 0:01:21]} 6. Bd3 {[%emt 0:00:13]} f5 {[%emt 0:01:19]} 7. Nf3 {[%emt 0:00:24]} Bd6 {[%emt 0:03:06]} 8. Ne2 {[%emt 0:00:19]} Be6 {[%emt 0:07:19]} 9. Nf4 {[%emt 0:00:31]} O-O {[%emt 0:03:06]} 10. O-O {[%emt 0:00:34]} Nd7 {[%emt 0:01:02]} 11. Nxe6 {[%emt 0:00:32]} fxe6 {[%emt 0:03:24]} 12. c4 {[%emt 0:00:13]} Nf6 {[%emt 0:03:06]} 13. g3 {[%emt 0:03:08]} Ne4 {[%emt 0:03:22]} 14. c5 {[%emt 0:07:00]} Bc7 {[%emt 0:03:21]} 15. b4 {[%emt 0:00:32]} g5 {[%emt 0:08:14]} 16. Qc2 {[%emt 0:00:39]} Qf6 {[%emt 0:03:05]} 17. a4 {[%emt 0:00:52]} a5 {[%emt 0:03:24]} 18. b5 {[%emt 0:00:09]} h5 {[%emt 0:02:20]} 19. bxc6 {[%emt 0:03:43]} bxc6 {[%emt 0:00:09]} 20. Rab1 {[%emt 0:00:52]} Rf7 {[%emt 0:08:49]} 21. Qb2 {[%emt 0:03:19]} Raf8 {[%emt 0:02:45]} 22. Bxe4 {[%emt 0:01:27]} fxe4 {[%emt 0:01:22]} 23. Nd2 {[%emt 0:02:15]} g4 {[%emt 0:05:07]} 24. Qc2 {[%emt 0:00:57]} h4 {[%emt 0:03:29]} 25. Qd1 {[%emt 0:00:12]} Qg5 {[%emt 0:01:42]} 26. Qe2 {[%emt 0:00:25]} Rf3 {[%emt 0:08:10]} 27. Rb7 {[%emt 0:01:46]} hxg3 {[%emt 0:04:31]} 28. Rxc7 {[%emt 0:10:00]} gxf2+ {[%emt 0:00:26]} 29. Kg2 {[%emt 0:14:16]} Qh4 {[%emt 0:03:00]} 0-1

[Event "Marshall CC Premier 01-2025"]
[Site "New York"]
[Date "2025.01.04"]
[Round "2.10"]
[White "Muthukumaran, Gurru"]
[Black "Mottola, Max"]
[Result "1/2-1/2"]
[ECO "B11"]
[WhiteElo "1878"]
[BlackElo "2132"]
[Annotator "TA"]
[PlyCount "125"]
[EventDate "2025.01.03"]
[EventType "swiss"]
[EventCountry "USA"]
[SourceTitle "playchess.com"]
[Source "ChessBase"]
[SourceQuality "1"]
[TimeControl "5400+30"]

{[%evp 10,125,31,25,26,0,54,55,48,47,76,2,68,62,68,59,70,54,55,56,86,89,81,68,79,64,334,332,352,347,341,161,160,157,162,157,158,147,169,158,162,160,174,153,152,145,163,161,160,154,172,168,189,179,202,195,245,252,223,159,238,189,154,161,217,218,226,217,229,208,203,158,143,143,156,106,111,34,43,25,95,0,0,0,0,0,0,0,0,0,0,0,24,-7,0,-8,12,12,12,8,10,0,22,0,25,12,12,12,466,464,470,0,0,0,485,0,0,0]} 1. e4 {[%emt 0:00:03]} c6 {[%emt 0:00:06]} 2. Nc3 {[%emt 0:00:06]} d5 {[%emt 0:00:05]} 3. Nf3 {[%emt 0:00:06]} dxe4 {[%emt 0:00:06]} 4. Nxe4 {[%emt 0:00:07]} Nf6 {[%emt 0:00:04]} 5. Qe2 {[%emt 0:00:11]} Nxe4 {[%emt 0:01:12]} 6. Qxe4 {[%emt 0:00:06]} Be6 {[%emt 0:00:05]} 7. c3 {[%emt 0:02:14]} g6 {[%emt 0:06:16]} (7... Bd5 $11 8. Qf4 Nd7) 8. Qe5 $14 {[%emt 0:09:35]} Rg8 {[%emt 0:00:11]} 9. d4 {[%emt 0:01:32]} Bd5 {[%emt 0:07:25]} 10. Qe2 {[%emt 0:03:43]} (10. Qg3 $16) 10... Bxf3 {[%emt 0:03:42]} (10... Bg7 $11) 11. Qxf3 {[%emt 0:00:09]} Qd5 {[%emt 0:00:09]} 12. Qh3 {[%emt 0:06:05]} Nd7 {[%emt 0:03:41]} 13. Be2 {[%emt 0:01:17][%cal Oe1g1]} Nf6 {[%emt 0:07:23]} 14. O-O {[%emt 0:00:58]} Qf5 {[%emt 0:03:41]} 15. Qg3 {[%emt 0:03:40]} O-O-O {[%emt 0:03:18]} 16. Bf4 {[%emt 0:08:16]} e6 {[%emt 0:07:51]} 17. Bd3 {[%emt 0:10:51]} Qg4 $2 {[%emt 0:05:33][%mdl 8192] [#]} (17... Qh5 $14) 18. Bg5 $1 $18 {[%emt 0:01:07] A strong pair of Bishops.} Bd6 {[%emt 0:04:37]} 19. Qxg4 {[%emt 0:01:50]} Nxg4 {[%emt 0:00:02]} 20. Bxd8 {[%emt 0:00:44]} (20. h3 $142 f6 21. Bd2) 20... Rxd8 {[%emt 0:01:22]} 21. g3 {[%emt 0:03:57]} Nf6 {[%emt 0:02:39]} 22. Rae1 {[%emt 0:02:01]} Nd5 {[%emt 0:01:32][%cal Bf6d5,Bd5e7,Be7f5][%mdl 32]} 23. a3 {[%emt 0:03:14]} Bc7 {[%emt 0:02:44]} 24. Bc2 {[%emt 0:02:06]} Rd7 {[%emt 0:07:26]} 25. Bb3 {[%emt 0:03:48]} Ne7 {[%emt 0:00:58]} 26. Re2 {[%emt 0:03:01]} h5 {[%emt 0:01:48]} 27. f4 {[%emt 0:02:27]} Nf5 {[%emt 0:01:34]} 28. Kg2 {[%emt 0:01:55]} Rd8 {[%emt 0:02:09]} 29. Bc2 {[%emt 0:03:37]} Ne7 {[%emt 0:01:19]} 30. Be4 {[%emt 0:02:00]} Rh8 {[%emt 0:03:13]} 31. Rd2 {[%emt 0:04:01]} Bb6 {[%emt 0:02:52]} 32. c4 {[%emt 0:03:03]} Rd8 {[%emt 0:02:21]} (32... h4 $142 33. b4 Bc7) 33. Rfd1 {[%emt 0:00:41]} Kb8 {[%emt 0:01:03]} 34. d5 {[%emt 0:01:36]} cxd5 {[%emt 0:01:02]} (34... exd5 $16 35. cxd5 cxd5) 35. cxd5 {[%emt 0:00:13]} exd5 {[%emt 0:00:40]} 36. f5 {[%emt 0:10:58]} (36. Bxd5 $6 Nf5 $14) 36... d4 {[%emt 0:01:42]} (36... Re8 {is a better defense.} 37. Bd3 (37. Bxd5 Nxf5 38. Bxf7 Ne3+ 39. Kh3 Rf8 $18) 37... Be3) 37. fxg6 {[%emt 0:04:16]} fxg6 {[%emt 0:00:33]} 38. Rf2 {[%emt 0:02:19]} Rd6 {[%emt 0:01:47]} 39. Rf7 {[%emt 0:00:58]} Re6 {[%emt 0:01:57]} 40. Kf3 {[%emt 0:00:08]} g5 {[%emt 0:01:24]} 41. Bd3 {[%emt 0:01:15] White has more active pieces.} Nc6 {[%emt 0:01:09] Threatens to win with ...Ne5+.} 42. Rf8+ {[%emt 0:00:20]} (42. Kf2 $142) 42... Kc7 $16 {[%emt 0:00:12]} 43. Bf5 {[%emt 0:00:23]} (43. Kf2 $16) 43... Re3+ $14 {[%emt 0:00:32]} 44. Kg2 {[%emt 0:00:41]} Re2+ {[%emt 0:01:24]} (44... Ne5 $1 $11 {remains equal.}) 45. Kf3 {[%emt 0:00:28]} ({White should play} 45. Kh1 $16) 45... Rxb2 {[%emt 0:03:05]} 46. Rf7+ {[%emt 0:00:15]} Kd6 {[%emt 0:00:35] ( -> ...Ne5+)} 47. Rd7+ $1 {[%emt 0:00:45]} (47. Rxb7 $2 Ne5+ 48. Ke4 Re2#) 47... Ke5 {[%emt 0:01:32]} 48. g4 {[%emt 0:00:25]} hxg4+ {[%emt 0:02:35]} 49. Kxg4 {[%emt 0:00:33]} Rg2+ {[%emt 0:00:37]} 50. Kf3 {[%emt 0:00:05]} Rxh2 {[%emt 0:00:53]} 51. Kg4 {[%emt 0:01:03]} Re2 {[%emt 0:03:12] Repels Re1} 52. Kxg5 {[%emt 0:00:35]} Bd8+ {[%emt 0:01:14]} 53. Kg4 {[%emt 0:00:27]} Rg2+ {[%emt 0:01:02]} (53... Be7 {simplifies} 54. Rxb7 Bxa3 55. Bd7 Re4+) 54. Kf3 {[%emt 0:00:08]} Ra2 {[%emt 0:00:44]} 55. Kg4 {[%emt 0:00:35]} Rxa3 {[%emt 0:00:53]} 56. Rxb7 {[%emt 0:00:24]} Kf6 {[%emt 0:00:30]} 57. Be4 {[%emt 0:00:25][%mdl 1024] White has compensation.} Ne5+ {[%emt 0:00:10]} 58. Kf4 {[%emt 0:00:09]} Bb6 $2 {[%emt 0:00:27][%mdl 8192]} (58... d3 $11) 59. Rh1 $18 {[%emt 0:00:26]} Ng6+ {[%emt 0:01:05]} 60. Kg4 {[%emt 0:00:28]} Ne5+ {[%emt 0:00:29]} 61. Kf4 {[%emt 0:00:24] White wants to mate with Rh6+.} Ng6+ {[%emt 0:00:35]} 62. Kg4 $2 {[%emt 0:00:40]} ({White must play} 62. Bxg6 $18 Ke6 (62... Kxg6 $2 {is the wrong capture.} 63. Rbh7 $18) 63. Rh5) 62... Ne5+ $11 {[%emt 0:00:23]} 63. Kf4 {[%emt 0:01:15]} 1/2-1/2